fUST/lending_fUST_20250806
["ID","MTS","AMOUNT","RATE_DAILY","PERIOD"]
[377445174,1754414083346,500.0,0.00026357,2]
[377445175,1754414083374,500.0,0.00026357,2]
[377445176,1754414083402,500.0,0.00026357,2]
[377445177,1754414083430,500.0,0.00026357,2]
[377445178,1754414083466,500.0,0.00026357,2]
[377445179,1754414083494,500.0,0.00026357,2]
[377445180,1754414083524,500.0,0.00026357,2]
[377445181,1754414083554,500.0,0.00026357,2]
[377445182,1754414083583,500.0,0.00026357,2]
[377445183,1754414083614,500.0,0.00026357,2]
[377445184,1754414083645,500.0,0.00026357,2]
[377445185,1754414083673,553.40468203,0.00026357,2]
[377445186,1754414083702,223.05488635,0.0003,120]
[377445187,1754414083732,500.0,0.00026357,2]
[377445188,1754414086460,-200.0,0.00026357,2]
[377445189,1754414086480,-16754.0,0.00026358,2]
[377445191,1754414087796,328.69,0.00026348,3]
[377445192,1754414088628,500.0,0.00026357,2]
[377445193,1754414088657,500.0,0.00026357,2]
[377445194,1754414088687,500.0,0.00026357,2]
[377445195,1754414088714,5000.0,0.00026357,2]
[377445196,1754414088744,500.0,0.00026357,2]
[377445197,1754414088776,360.45741489,0.00026357,2]
[377445198,1754414088809,500.0,0.00026357,2]
[377445199,1754414088908,493.90338432,0.00026357,2]
[377445200,1754414088932,6.09661568,0.00026357,2]
[377445201,1754414088969,500.0,0.00026357,2]
[377445202,1754414093279,431.91,0.00026348,10]
[377445203,1754414096551,5000.0,0.00026357,2]
[377445204,1754414098218,500.0,0.00026357,2]
[377445205,1754414098265,500.0,0.00026357,2]
[377445206,1754414098325,500.0,0.00026357,2]
[377445207,1754414098379,243.13460704,0.00026357,2]
[377445208,1754414098469,312.98,0.00026348,3]
[377445209,1754414101419,500.0,0.00026357,2]
[377445210,1754414101446,500.0,0.00026357,2]
[377445211,1754414101472,500.0,0.00026357,2]
[377445212,1754414101499,241.8703239,0.00026357,2]
[377445213,1754414101527,500.0,0.00026357,2]
[377445214,1754414101556,500.0,0.00026357,2]
[377445215,1754414101588,500.0,0.00026357,2]
[377445216,1754414101621,500.0,0.00026357,2]
[377445217,1754414101650,500.0,0.00026357,2]
[377445218,1754414101679,500.0,0.00026357,2]
[377445219,1754414101708,500.0,0.00026357,2]
[377445220,1754414101735,500.0,0.00026357,2]
[377445221,1754414102339,178.403,0.00025205,9]
[377445222,1754414104363,189.35763739,0.00026258,2]
[377445223,1754414104409,359.92,0.00026348,10]
[377445224,1754414104469,5000.0,0.00026357,2]
[377445225,1754414106266,500.0,0.00026357,2]
[377445226,1754414107983,36.32781599,0.00026357,2]
[377445227,1754414108008,463.67218401,0.00026357,2]
[377445228,1754414108061,500.0,0.00026357,2]
[377445229,1754414109186,156.49,0.00026348,3]
[377445230,1754414109631,500.0,0.00026357,2]
[377445231,1754414109929,500.0,0.00026357,2]
[377445232,1754414110255,500.0,0.00026357,2]
[377445233,1754414110446,501.09472158,0.00026357,2]
[377445234,1754414110577,500.0,0.00026357,2]
[377445235,1754414111378,500.0,0.00026357,2]
[377445236,1754414111693,500.0,0.00026357,2]
[377445237,1754414111770,201.82122837,0.00026357,2]
[377445238,1754414112012,500.0,0.00026357,2]
[377445239,1754414112382,500.0,0.00026357,2]
[377445240,1754414112410,252.321,0.00025382,2]
[377445241,1754414112678,500.0,0.00026357,2]
[377445242,1754414112713,500.0,0.00026357,2]
[377445243,1754414112744,500.0,0.00026357,2]
[377445244,1754414112791,500.0,0.00026357,2]
[377445246,1754414112823,500.0,0.00026357,2]
[377445248,1754414112860,500.0,0.00026357,2]
[377445249,1754414112922,500.0,0.00026357,2]
[377445250,1754414112989,500.0,0.00026357,2]
[377445251,1754414113024,500.0,0.00026357,2]
[377445252,1754414113052,152.3548301,0.00026357,2]
[377445253,1754414113084,500.0,0.00026357,2]
[377445254,1754414113113,500.0,0.00026357,2]
[377445255,1754414113146,553.40468203,0.00026357,2]
[377445256,1754414113176,500.0,0.00026357,2]
[377445257,1754414114248,500.0,0.00026357,2]
[377445258,1754414114302,500.0,0.00026357,2]
[377445259,1754414114361,396.758003,0.00026357,2]
[377445260,1754414114856,299.94,0.00026348,10]
[377445261,1754414117946,500.0,0.00026357,2]
[377445262,1754414118006,500.0,0.00026357,2]
[377445263,1754414118064,360.15226225,0.00026357,2]
[377445264,1754414118583,500.0,0.00026357,2]
[377445265,1754414118611,500.0,0.00026357,2]
[377445266,1754414118642,500.0,0.00026357,2]
[377445267,1754414118676,500.0,0.00026357,2]
[377445268,1754414118706,500.0,0.00026357,2]
[377445269,1754414118735,500.0,0.00026357,2]
[377445270,1754414120235,469.47,0.00026348,3]
[377445271,1754414121392,692.52108866,0.00026357,2]
[377445272,1754414121417,4307.47891134,0.00026357,2]
[377445273,1754414126431,249.95,0.00026348,10]
[377445274,1754414137813,5000.0,0.00026357,2]
[377445275,1754414138166,208.29,0.00026348,10]
[377445276,1754414149634,173.57,0.00026348,10]
[377445277,1754414151871,623.94699923,0.00026257,5]
[377445278,1754414153627,150.0,0.00023995,2]
[377445279,1754414156604,5000.0,0.00026357,2]
[377445280,1754414161284,867.89,0.00026348,10]
[377445281,1754414163605,300.0,0.00026356,2]
[377445282,1754414170428,-300.0,0.00026357,2]
[377445283,1754414170450,-1200.0,0.00026357,2]
[377445284,1754414170472,-300.0,0.00026357,2]
[377445285,1754414170492,-300.0,0.00026357,2]
[377445286,1754414170512,-12243.0,0.00026358,2]
[377445287,1754414170841,3118.87408943,0.00026258,2]
[377445288,1754414170865,18243.0389934,0.00026258,2]
[377445290,1754414190636,500.0,0.00026357,2]
[377445291,1754414190693,416.54317484,0.00026357,2]
[377445294,1754414200558,500.0,0.00026357,2]
[377445295,1754414200585,340.41783176,0.00026357,2]
[377445296,1754414200609,159.58216824,0.00026357,2]
[377445297,1754414200637,500.0,0.00026357,2]
[377445298,1754414200666,500.0,0.00026357,2]
[377445299,1754414200693,500.0,0.00026357,2]
[377445300,1754414200719,500.0,0.00026357,2]
[377445301,1754414200747,500.0,0.00026357,2]
[377445302,1754414200779,500.0,0.00026357,2]
[377445303,1754414200809,500.0,0.00026357,2]
[377445304,1754414200836,500.0,0.00026357,2]
[377445305,1754414200870,500.0,0.00026357,2]
[377445306,1754414200913,500.0,0.00026357,2]
[377445307,1754414200940,437.09534866,0.00026357,2]
[377445308,1754414200970,500.0,0.00026357,2]
[377445309,1754414201000,500.0,0.00026357,2]
[377445310,1754414201027,500.0,0.00026357,2]
[377445311,1754414201054,500.0,0.00026357,2]
[377445312,1754414201081,500.0,0.00026357,2]
[377445313,1754414201113,500.0,0.00026357,2]
[377445314,1754414201154,500.0,0.00026357,2]
[377445315,1754414201181,500.0,0.00026357,2]
[377445316,1754414201211,500.0,0.00026357,2]
[377445317,1754414201238,530.84357754,0.00026357,2]
[377445318,1754414201269,500.0,0.00026357,2]
[377445319,1754414201303,500.0,0.00026357,2]
[377445320,1754414201334,500.0,0.00026357,2]
[377445321,1754414201364,500.0,0.00026357,2]
[377445322,1754414201392,500.0,0.00026357,2]
[377445323,1754414206441,703.63,0.00026348,10]
[377445324,1754414212796,1108.88,0.00026348,3]
[377445325,1754414223458,554.44,0.00026348,3]
[377445326,1754414227205,500.0,0.00026357,2]
[377445327,1754414227235,500.0,0.00026357,2]
[377445328,1754414227266,500.0,0.00026357,2]
[377445329,1754414227295,500.0,0.00026357,2]
[377445330,1754414227329,554.60780178,0.00026357,2]
[377445331,1754414227359,500.0,0.00026357,2]
[377445332,1754414227386,500.0,0.00026357,2]
[377445333,1754414227418,500.0,0.00026357,2]
[377445334,1754414227448,450.92110378,0.00026357,2]
[377445335,1754414227473,49.07889622,0.00026357,2]
[377445336,1754414227504,500.0,0.00026357,2]
[377445337,1754414227546,500.0,0.00026357,2]
[377445338,1754414227579,500.0,0.00026357,2]
[377445339,1754414227610,500.0,0.00026357,2]
[377445340,1754414227641,500.0,0.00026357,2]
[377445341,1754414227669,500.0,0.00026357,2]
[377445342,1754414227699,500.0,0.00026357,2]
[377445343,1754414227730,500.0,0.00026357,2]
[377445344,1754414227761,500.0,0.00026357,2]
[377445345,1754414227798,500.0,0.00026357,2]
[377445346,1754414227830,500.0,0.00026357,2]
[377445347,1754414227859,500.0,0.00026357,2]
[377445348,1754414227895,500.0,0.00026357,2]
[377445349,1754414227942,500.0,0.00026357,2]
[377445351,1754414227973,500.0,0.00026357,2]
[377445352,1754414228015,500.0,0.00026357,2]
[377445353,1754414228114,500.0,0.00026357,2]
[377445354,1754414228168,500.0,0.00026357,2]
[377445355,1754414228237,500.0,0.00026357,2]
[377445356,1754414232429,500.0,0.00026357,2]
[377445357,1754414233456,3974.48713087,0.00026258,2]
[377445358,1754414233746,920.0,0.00025382,2]
[377445359,1754414234165,277.22,0.00026348,3]
[377445360,1754414237074,500.0,0.00026357,2]
[377445361,1754414237128,506.92765415,0.00026357,2]
[377445362,1754414237211,500.0,0.00026357,2]
[377445363,1754414237257,500.0,0.00026357,2]
[377445364,1754414237286,500.0,0.00026357,2]
[377445365,1754414237322,500.0,0.00026357,2]
[377445366,1754414237351,451.91936793,0.00026357,2]
[377445367,1754414237386,500.0,0.00026357,2]
[377445368,1754414237421,500.0,0.00026357,2]
[377445369,1754414237458,320.36695083,0.00026357,2]
[377445370,1754414237483,179.63304917,0.00026357,2]
[377445371,1754414237511,500.0,0.00026357,2]
[377445372,1754414237543,500.0,0.00026357,2]
[377445373,1754414237575,500.0,0.00026357,2]
[377445374,1754414237605,344.68449426,0.00026357,2]
[377445375,1754414237638,500.0,0.00026357,2]
[377445376,1754414237667,500.0,0.00026357,2]
[377445377,1754414237695,500.0,0.00026357,2]
[377445378,1754414237724,500.0,0.00026357,2]
[377445379,1754414237781,500.0,0.00026357,2]
[377445380,1754414237831,500.0,0.00026357,2]
[377445381,1754414237859,500.0,0.00026357,2]
[377445382,1754414237888,278.38111714,0.00026357,2]
[377445383,1754414237919,500.0,0.00026357,2]
[377445384,1754414237947,500.0,0.00026357,2]
[377445385,1754414237978,500.0,0.00026357,2]
[377445386,1754414238011,500.0,0.00026357,2]
[377445387,1754414238041,500.0,0.00026357,2]
[377445388,1754414238072,500.0,0.00026357,2]
[377445389,1754414238101,500.0,0.00026357,2]
[377445390,1754414238285,500.0,0.00026357,2]
[377445391,1754414238313,500.0,0.00026357,2]
[377445392,1754414238345,500.0,0.00026357,2]
[377445393,1754414238373,500.0,0.00026357,2]
[377445394,1754414238404,500.0,0.00026357,2]
[377445395,1754414238488,500.0,0.00026357,2]
[377445396,1754414238573,500.0,0.00026357,2]
[377445397,1754414238609,250.0,0.00026357,2]
[377445398,1754414238638,500.0,0.00026357,2]
[377445399,1754414238670,500.0,0.00026357,2]
[377445400,1754414238825,500.0,0.00026357,2]
[377445401,1754414238896,500.0,0.00026357,2]
[377445402,1754414238941,500.0,0.00026357,2]
[377445403,1754414239014,495.373439,0.00026357,2]
[377445404,1754414239132,500.0,0.00026357,2]
[377445405,1754414239275,500.0,0.00026357,2]
[377445406,1754414239385,500.0,0.00026357,2]
[377445407,1754414239449,500.0,0.00026357,2]
[377445408,1754414239652,500.0,0.00026357,2]
[377445409,1754414239738,500.0,0.00026357,2]
[377445410,1754414239955,500.0,0.00026357,2]
[377445411,1754414240261,451.92790043,0.00026357,2]
[377445412,1754414240284,48.07209957,0.00026357,2]
[377445413,1754414240321,500.0,0.00026357,2]
[377445414,1754414240570,500.0,0.00026357,2]
[377445415,1754414240659,500.0,0.00026357,2]
[377445416,1754414240908,500.0,0.00026357,2]
[377445417,1754414240936,416.86310623,0.00026357,2]
[377445418,1754414240971,350.0,0.00026357,2]
[377445419,1754414241224,500.0,0.00026357,2]
[377445420,1754414241272,500.0,0.00026357,2]
[377445421,1754414241302,500.0,0.00026357,2]
[377445422,1754414241332,500.0,0.00026357,2]
[377445423,1754414241368,500.0,0.00026357,2]
[377445424,1754414241398,500.0,0.00026357,2]
[377445425,1754414241424,500.0,0.00026357,2]
[377445426,1754414241453,500.0,0.00026357,2]
[377445427,1754414241515,500.0,0.00026357,2]
[377445428,1754414241549,500.0,0.00026357,2]
[377445429,1754414241588,500.0,0.00026357,2]
[377445430,1754414241620,500.0,0.00026357,2]
[377445431,1754414241648,500.0,0.00026357,2]
[377445432,1754414241675,500.0,0.00026357,2]
[377445433,1754414241703,500.0,0.00026357,2]
[377445434,1754414241733,500.0,0.00026357,2]
[377445435,1754414241759,500.0,0.00026357,2]
[377445436,1754414241788,500.0,0.00026357,2]
[377445437,1754414241823,500.0,0.00026357,2]
[377445438,1754414241872,500.0,0.00026357,2]
[377445439,1754414241906,500.0,0.00026357,2]
[377445440,1754414241934,500.0,0.00026357,2]
[377445441,1754414241970,500.0,0.00026357,2]
[377445442,1754414242005,500.0,0.00026357,2]
[377445443,1754414242036,500.0,0.00026357,2]
[377445444,1754414242095,500.0,0.00026357,2]
[377445445,1754414242125,500.0,0.00026357,2]
[377445446,1754414242170,500.0,0.00026357,2]
[377445447,1754414242200,500.0,0.00026357,2]
[377445448,1754414242241,500.0,0.00026357,2]
[377445449,1754414242272,500.0,0.00026357,2]
[377445450,1754414242302,500.0,0.00026357,2]
[377445451,1754414242454,344.42654747,0.00026357,2]
[377445452,1754414244846,831.7,0.00026348,3]
[377445453,1754414247748,8.93824673,0.00026357,2]
[377445454,1754414247770,205.75957571,0.00026357,2]
[377445455,1754414248078,-500.0,0.00026357,2]
[377445456,1754414249941,500.0,0.00026357,2]
[377445457,1754414249988,500.0,0.00026357,2]
[377445458,1754414250025,500.0,0.00026357,2]
[377445459,1754414250054,452.1558049,0.00026357,2]
[377445460,1754414250093,500.0,0.00026357,2]
[377445462,1754414256517,500.0,0.00026357,2]
[377445463,1754414256620,157.99788721,0.00026357,2]
[377445464,1754414256710,500.0,0.00026357,2]
[377445465,1754414256744,500.0,0.00026357,2]
[377445466,1754414256773,500.0,0.00026357,2]
[377445467,1754414256808,500.0,0.00026357,2]
[377445468,1754414256838,500.0,0.00026357,2]
[377445469,1754414256867,500.0,0.00026357,2]
[377445470,1754414256926,500.0,0.00026357,2]
[377445471,1754414256967,500.0,0.00026357,2]
[377445472,1754414257035,500.0,0.00026357,2]
[377445473,1754414257070,500.0,0.00026357,2]
[377445474,1754414257111,500.0,0.00026357,2]
[377445475,1754414257140,343.32980354,0.00026357,2]
[377445476,1754414257175,500.0,0.00026357,2]
[377445477,1754414257231,500.0,0.00026357,2]
[377445478,1754414257288,500.0,0.00026357,2]
[377445479,1754414257347,500.0,0.00026357,2]
[377445480,1754414259191,850.01291306,0.00026258,2]
[377445481,1754414259220,500.0,0.00026357,2]
[377445482,1754414274312,5000.0,0.00025983,2]
[377445484,1754414288271,189.0,0.0002537,16]
[377445485,1754414297673,2301.74401558,0.00026348,2]
[377445486,1754414297697,20000.0,0.00026348,2]
[377445487,1754414297722,20000.0,0.00026348,2]
[377445488,1754414297746,20000.0,0.00026348,2]
[377445489,1754414297770,20000.0,0.00026348,2]
[377445490,1754414297794,20000.0,0.00026348,2]
[377445491,1754414297820,20000.0,0.00026348,2]
[377445492,1754414297845,20000.0,0.00026348,2]
[377445493,1754414297870,20000.0,0.00026348,2]
[377445494,1754414297895,20000.0,0.00026348,2]
[377445495,1754414297919,18620.35473542,0.00026348,2]
[377445496,1754414301203,752.59600485,0.00026348,2]
[377445498,1754414324483,356.47079334,0.00026357,2]
[377445499,1754414337607,270.57846639,0.00026348,3]
[377445500,1754414337629,531.73153361,0.00026348,3]
[377445501,1754414337838,479.7656703,0.00025417,2]
[377445502,1754414348523,786.94,0.00026348,3]
[377445505,1754414353141,208.24583873,0.0003,120]
[377445506,1754414354607,502.904,0.00025382,2]
[377445507,1754414355397,460.0,0.00025382,2]
[377445508,1754414359296,393.47,0.00026348,3]
[377445509,1754414364096,212.0,0.00025205,7]
[377445510,1754414368434,189.25201466,0.00026116,5]
[377445511,1754414370555,196.73,0.00026348,3]
[377445513,1754414381501,590.23,0.00026348,3]
[377445514,1754414405356,15656.97678143,0.00025367,2]
[377445515,1754414405380,9243.02321857,0.00025367,2]
[377445518,1754414457256,10756.97678143,0.00025364,2]
[377445519,1754414457279,20000.0,0.00025364,2]
[377445520,1754414457303,2913.02321857,0.00025364,2]
[377445521,1754414460959,17086.97678143,0.00026258,2]
[377445522,1754414460982,1155.46260739,0.00026258,2]
[377445523,1754414462422,300.0,0.00026356,2]
[377445524,1754414462710,215.85310535,0.00025205,30]
[377445525,1754414463616,2200.0,0.0002508,2]
[377445526,1754414464055,152.0,0.00026356,2]
[377445527,1754414468063,2200.0,0.00026176,2]
[377445528,1754414469340,500.0,0.00026357,2]
[377445529,1754414469372,393.97003037,0.00026357,2]
[377445530,1754414469400,500.0,0.00026357,2]
[377445531,1754414469579,521.28491384,0.00026357,2]
[377445532,1754414469613,500.0,0.00026357,2]
[377445533,1754414469641,500.0,0.00026357,2]
[377445534,1754414469667,612.43205488,0.00026357,2]
[377445535,1754414473105,500.0,0.00026357,2]
[377445536,1754414473150,500.0,0.00026357,2]
[377445537,1754414473206,405.37280767,0.00026357,2]
[377445538,1754414473236,657.256754,0.00025364,2]
[377445539,1754414487086,187.05,0.00026348,10]
[377445541,1754414493247,509.4082719,0.00026357,2]
[377445542,1754414495076,1200.0,0.00026356,2]
[377445545,1754414522994,300.0,0.00026356,2]
[377445548,1754414542686,297.761795,0.00025368,2]
[377445549,1754414550296,460.0,0.00026357,2]
[377445550,1754414555439,2749.39,0.00026348,3]
[377445552,1754414566098,1374.7,0.00026348,3]
[377445554,1754414573994,1323.91076495,0.00026262,2]
[377445555,1754414574019,1855.67893977,0.00026262,2]
[377445556,1754414575429,1000.0,0.00025368,2]
[377445557,1754414577243,687.35,0.00026348,3]
[377445558,1754414583286,300.0,0.00026356,2]
[377445559,1754414587909,343.67,0.00026348,3]
[377445561,1754414596123,15813.30106023,0.00026348,2]
[377445562,1754414596146,20000.0,0.00026348,2]
[377445563,1754414596168,20000.0,0.00026348,2]
[377445564,1754414596191,20000.0,0.00026348,2]
[377445565,1754414596215,20000.0,0.00026348,2]
[377445566,1754414602271,31.30856532,0.00025205,14]
[377445567,1754414603004,-155.65,0.00025205,14]
[377445568,1754414604801,-151.88,0.00025205,14]
[377445569,1754414608726,-154.05,0.00025205,14]
[377445570,1754414610887,-187.07,0.00025205,14]
[377445571,1754414612896,-323.23278149,0.00025205,14]
[377445572,1754414615032,-171.52,0.00025205,14]
[377445575,1754414619863,-244.39572871,0.00025205,14]
[377445576,1754414622507,-470.62998527,0.00025205,14]
[377445577,1754414624071,-204.10201505,0.00025205,14]
[377445578,1754414627374,-179.37001473,0.00025205,14]
[377445579,1754414630316,-203.97573463,0.00025205,14]
[377445580,1754414632914,-171.940305,0.00025205,14]
[377445581,1754414635487,-302.67911116,0.00025205,14]
[377445582,1754414637982,-162.96347857,0.00025205,14]
[377445583,1754414638855,-816.95519954,0.00025205,14]
[377445584,1754414638885,-157.0,0.0002537,16]
[377445585,1754414638919,-810.09720426,0.00026343,2]
[377445586,1754414639162,-1431.8951924,0.00026343,2]
[377445587,1754414642633,-300.0,0.00026347,2]
[377445588,1754414647691,-164.05477686,0.00026247,2]
[377445591,1754414673284,-166.23,0.00025472,7]
[377445592,1754414673875,-166.23,0.00026091,7]
[377445593,1754414679594,-2592.72508889,0.00026348,2]
[377445594,1754414679830,-5000.0,0.00026348,2]
[377445595,1754414680008,-5000.0,0.00026348,2]
[377445596,1754414680223,-5000.0,0.00026348,2]
[377445597,1754414680409,-5000.0,0.00026348,2]
[377445598,1754414680521,-5000.0,0.00026348,2]
[377445599,1754414680696,-5000.0,0.00026348,2]
[377445600,1754414680897,-5000.0,0.00026348,2]
[377445601,1754414681035,-5000.0,0.00026348,2]
[377445602,1754414681188,-5000.0,0.00026348,2]
[377445603,1754414681351,-5000.0,0.00026348,2]
[377445604,1754414681488,-5000.0,0.00026348,2]
[377445605,1754414681743,-371.92,0.00026347,3]
[377445606,1754414681778,-4256.16,0.00026348,2]
[377445607,1754414681931,-5000.0,0.00026348,2]
[377445608,1754414682342,-5000.0,0.00026348,2]
[377445609,1754414682487,-380.07716588,0.00026348,2]
[377445610,1754414682524,-4239.84566824,0.00026348,2]
[377445611,1754414682935,-5000.0,0.00026348,2]
[377445612,1754414683074,-787.89128824,0.00026348,2]
[377445613,1754414683103,-3424.21742352,0.00026348,2]
[377445614,1754414683222,-171.84,0.00026348,3]
[377445615,1754414683253,-515.53,0.00026348,3]
[377445625,1754414732128,1800.0,0.00025079,2]
[377445626,1754414735854,1800.0,0.00026175,2]
[377445627,1754414737046,25.26,0.00025356,2]
[377445628,1754414737072,5000.0,0.00025356,2]
[377445629,1754414737095,4974.74,0.00025356,2]
[377445630,1754414741817,25.26,0.00026348,7]
[377445631,1754414741841,284.46,0.00026348,7]
[377445632,1754414744898,164.71783837,0.0002625,2]
[377445635,1754414749858,164.71783836,0.00026252,2]
[377445636,1754414751136,4386.10432327,0.00026262,2]
[377445637,1754414751162,5000.0,0.00026262,2]
[377445638,1754414751184,2775.52193595,0.00026262,2]
[377445639,1754414754884,164.71783836,0.00026255,2]
[377445640,1754414759569,2059.76022569,0.00026348,2]
[377445641,1754414759592,2940.23977431,0.00026348,2]
[377445642,1754414759844,164.71783836,0.00026257,2]
[377445643,1754414760852,439.2427726,0.00026347,2]
[377445644,1754414766788,605.2810271,0.00026347,2]
[377445645,1754414766830,500.0,0.00026347,2]
[377445646,1754414766866,350.51858763,0.00026347,2]
[377445647,1754414766889,149.48141237,0.00026347,2]
[377445648,1754414766921,500.0,0.00026347,2]
[377445649,1754414766951,500.0,0.00026347,2]
[377445650,1754414766980,324.97670066,0.00026347,2]
[377445651,1754414767012,500.0,0.00026347,2]
[377445652,1754414767040,475.28605017,0.00026347,2]
[377445653,1754414767067,400.0,0.00026347,2]
[377445654,1754414767095,466.85332338,0.00026347,2]
[377445655,1754414767123,500.0,0.00026347,2]
[377445656,1754414767154,500.0,0.00026347,2]
[377445657,1754414767181,348.87695667,0.00026347,2]
[377445658,1754414767209,334.52555675,0.00026347,2]
[377445659,1754414767232,165.47444325,0.00026347,2]
[377445660,1754414767263,500.0,0.00026347,2]
[377445661,1754414767290,500.0,0.00026347,2]
[377445662,1754414767321,500.0,0.00026347,2]
[377445663,1754414767352,523.12019592,0.00026347,2]
[377445664,1754414767382,209.85788519,0.00026347,2]
[377445665,1754414767417,500.0,0.00026347,2]
[377445666,1754414767450,500.0,0.00026347,2]
[377445667,1754414767485,500.0,0.00026347,2]
[377445668,1754414767689,500.0,0.00026347,2]
[377445669,1754414767719,500.0,0.00026347,2]
[377445670,1754414767750,101.54747564,0.00026347,2]
[377445671,1754414767776,398.45252436,0.00026347,2]
[377445672,1754414768036,500.0,0.00026347,2]
[377445673,1754414774933,4101.54747564,0.00026348,2]
[377445674,1754414774960,898.45252436,0.00026348,2]
[377445675,1754414776122,215.85310535,0.00025205,30]
[377445678,1754414791448,4101.54747564,0.00026348,2]
[377445679,1754414791470,898.45252436,0.00026348,2]
[377445681,1754414802358,150.0,0.00023979,2]
[377445682,1754414806928,3951.54747564,0.00026348,2]
[377445683,1754414806954,1048.45252436,0.00026348,2]
[377445684,1754414812307,275.31,0.00025482,7]
[377445685,1754414812715,275.31,0.000261,7]
[377445688,1754414822845,3400.92747564,0.00026348,2]
[377445689,1754414822868,1599.07252436,0.00026348,2]
[377445690,1754414838092,3400.92747564,0.00026348,2]
[377445691,1754414838115,1599.07252436,0.00026348,2]
[377445692,1754414838487,165.42,0.00023573,2]
[377445694,1754414853399,3235.50747564,0.00026348,2]
[377445695,1754414853428,1764.49252436,0.00026348,2]
[377445697,1754414856004,573.18,0.00026348,3]
[377445698,1754414869197,2662.32747564,0.00026348,2]
[377445699,1754414869221,2337.67252436,0.00026348,2]
[377445701,1754414883590,214.13,0.00026348,7]
[377445702,1754414887595,2448.19747564,0.00026348,2]
[377445703,1754414887620,2551.80252436,0.00026348,2]
[377445704,1754414894833,201.04639272,0.000125,2]
[377445705,1754414904227,2247.15108292,0.00026348,2]
[377445706,1754414904253,2752.84891708,0.00026348,2]
[377445707,1754414908110,2043.34852277,0.0002,2]
[377445708,1754414908590,203.80256015,0.00026348,2]
[377445709,1754414908613,5000.0,0.00026348,2]
[377445710,1754414908638,5000.0,0.00026348,2]
[377445711,1754414908663,5000.0,0.00026348,2]
[377445712,1754414908688,5000.0,0.00026348,2]
[377445713,1754414908710,5000.0,0.00026348,2]
[377445714,1754414908732,5000.0,0.00026348,2]
[377445715,1754414908754,5000.0,0.00026348,2]
[377445716,1754414908778,5000.0,0.00026348,2]
[377445717,1754414908800,5000.0,0.00026348,2]
[377445718,1754414908821,5000.0,0.00026348,2]
[377445719,1754414908844,5000.0,0.00026348,2]